bitfinex-derivatives/quotes_ETHF0:USTF0_20250428
["timestamp","ask_amount","ask_price","bid_price","bid_amount"]
[1745835844656,9.02284852,1796.4,1796.2,1.11305]
[1745835844851,13.04049852,1796.4,1796.2,7.52505]
[1745835845053,11.92754852,1796.4,1796.3,1.11301]
[1745835845252,9.02284852,1796.4,1796.3,4.27681]
[1745835846257,9.02284852,1796.4,1796.3,7.48461]
[1745835846651,9.02284852,1796.4,1796.3,12.48461]
[1745835846652,1.19760437,1796.4,1796.3,12.48461]
[1745835847058,2.9047,1796.8,1796.6,1.11276]
[1745835847261,2.9047,1796.8,1796.7,1.11276]
[1745835847454,2.9047,1796.8,1796.4,5.88974]
[1745835847757,1.11264,1796.9,1796.4,5.88974]
[1745835847960,3.2078,1796.8,1796.5,1.11285]
[1745835848159,3.2023,1796.7,1796.4,3.1074]
[1745835848459,2.78116,1797.2,1796.7,1.11276]
[1745835848460,4.32043,1797.0,1796.7,1.11276]
[1745835848659,4.32039,1797.0,1796.8,1.11267]
[1745835848855,3.2023,1796.9,1796.7,6.171]
[1745835849358,4.315,1796.9,1796.7,6.171]
[1745835849549,6.4101,1796.9,1796.7,6.171]
[1745835849758,3.2023,1796.9,1796.7,6.171]
[1745835849947,1.1127,1796.8,1796.7,6.171]
[1745835850152,4.3205,1796.8,1796.7,6.171]
[1745835850554,2.78221,1796.6,1796.3,6.171]
[1745835850856,5.56228,1797.2,1796.3,6.171]
[1745835850857,1.11294,1796.4,1796.3,6.171]
[1745835851259,2.9918,1796.4,1796.3,6.171]
[1745835851558,3.2078,1796.8,1796.5,1.11288]
[1745835851860,6.1996,1796.8,1796.6,1.11281]
[1745835852056,7.31231,1796.8,1796.5,1.11283]
[1745835852254,6.1996,1796.8,1796.6,4.27171]
[1745835852457,6.1996,1796.8,1796.7,3.1589]
[1745835853158,7.3123,1796.8,1796.7,3.1589]
[1745835853362,7.3123,1796.8,1796.5,1.11287]
[1745835853363,6.1996,1796.8,1796.5,1.11287]
[1745835853662,6.1996,1796.8,1796.4,6.2994]
[1745835853863,6.1996,1796.8,1796.7,1.11276]
[1745835854165,3.2078,1796.8,1796.4,3.0916]
[1745835854355,3.2078,1796.6,1796.1,6.17]
[1745835854753,3.2078,1796.3,1796.1,6.17]
[1745835854952,3.1008,1796.2,1796.1,6.17]
[1745835855359,8.1008,1796.2,1795.7,6.17]
[1745835855565,3.2078,1795.8,1795.4,4.20514]
[1745835855859,3.2078,1795.6,1795.1,40.8]
[1745835856067,3.1008,1795.5,1795.1,43.8916]
[1745835856367,3.2078,1795.3,1795.0,6.17]
[1745835856673,2.973,1795.2,1795.0,6.17]
[1745835856851,3.2078,1795.6,1795.0,46.97]
[1745835857164,3.2078,1795.6,1795.3,1.11362]
[1745835857364,2.973,1795.5,1795.2,6.171]
[1745835859260,4.0865,1795.5,1795.2,6.171]
[1745835859458,1.11359,1795.4,1795.2,6.171]
[1745835859665,6.3515,1795.3,1795.2,6.171]
[1745835861063,6.3515,1795.3,1794.8,3.0667]
[1745835861264,1.11418,1794.4,1794.1,14.56658137]
[1745835861561,1.11431,1794.2,1793.5,5.91075]
[1745835861762,3.1437,1794.3,1794.0,40.8]
[1745835861959,3.1437,1794.3,1794.1,3.1239]
[1745835862155,3.2078,1794.6,1794.5,1.11412]
[1745835862565,3.2078,1794.6,1794.1,9.1176]
[1745835862566,3.2078,1794.6,1794.4,1.11415]
[1745835862763,3.2078,1794.6,1794.5,1.11412]
[1745835863355,3.2078,1795.1,1794.9,1.11387]
[1745835863663,0.44362095,1795.0,1794.9,1.11387]
[1745835863861,0.44362095,1795.0,1794.7,1.11397]
[1745835864066,3.0847,1794.9,1794.5,3.1818]
[1745835864269,3.0847,1794.9,1794.5,4.29588]
[1745835864468,3.0847,1794.9,1794.6,1.11404]
[1745835864768,6.2925,1794.9,1794.6,1.11404]
[1745835864968,0.4433303,1794.8,1794.5,4.32192]
[1745835865267,3.0847,1794.7,1794.6,1.11406]
[1745835865461,0.4433303,1794.8,1794.7,1.114]
[1745835865859,3.351,1795.1,1794.8,1.11393]
[1745835866063,0.44322463,1795.0,1794.6,4.47983]
[1745835866263,3.351,1794.9,1794.5,4.32187]
[1745835866465,3.351,1794.9,1794.6,1.11405]
[1745835866654,3.351,1794.9,1794.5,3.2078]
[1745835866861,3.2078,1794.8,1794.5,3.2078]
[1745835867056,3.351,1794.7,1794.5,4.32191]
[1745835867262,3.351,1794.7,1794.5,3.2078]
[1745835867570,3.351,1794.7,1794.5,4.32191]
[1745835868065,3.351,1794.7,1794.6,1.11406]
[1745835868266,3.351,1794.7,1794.5,4.32187]
[1745835868858,3.351,1794.7,1794.6,1.11406]
[1745835870467,3.2078,1795.2,1795.1,1.11375]
[1745835870968,3.65044828,1795.2,1795.1,1.11375]
[1745835871369,11.95314828,1795.2,1794.7,2.785]
[1745835871668,0.44264828,1795.1,1794.5,6.5486]
[1745835872070,3.2078,1794.8,1794.7,1.11399]
[1745835877572,4.32174,1794.8,1794.7,1.11399]
[1745835877767,4.32174,1794.8,1794.6,1.11401]
[1745835877967,4.32174,1794.8,1794.7,1.114]
[1745835878166,4.76494758,1794.8,1794.7,1.114]
[1745835878769,3.65100758,1794.8,1794.7,1.114]
[1745835878970,4.76494758,1794.8,1794.7,1.114]
[1745835879172,3.65127456,1794.8,1794.7,1.114]
[1745835880073,3.2078,1794.8,1794.7,1.114]
[1745835880670,5.40159499,1795.3,1794.7,5.0]
[1745835880877,6.51522499,1795.3,1795.2,1.11369]
[1745835881069,1.1137,1795.2,1795.1,1.1137]
[1745835881266,6.51527499,1795.3,1795.2,1.11369]
[1745835881473,5.40159499,1795.3,1795.2,1.11369]
[1745835881671,6.51522499,1795.3,1795.2,1.11369]
[1745835881871,1.11371,1795.2,1795.1,1.11369]
[1745835882174,6.51527499,1795.3,1795.2,1.11369]
[1745835882374,1.11375,1795.2,1795.1,1.11372]
[1745835882674,7.46485,1795.2,1795.1,1.11372]
[1745835882869,6.79577442,1795.2,1795.1,1.11372]
[1745835883069,3.58797442,1795.2,1795.1,1.11372]
[1745835883276,4.70166442,1795.2,1795.1,1.11372]
[1745835883574,6.79577442,1795.2,1794.8,12.07684]
[1745835883773,3.2078,1795.1,1794.6,2.78516]
[1745835884078,3.2078,1794.9,1794.8,1.1139]
[1745835884380,2.78489,1794.8,1794.2,2.78576]
[1745835884567,4.3219,1794.6,1794.2,6.00676]
[1745835884878,3.2078,1794.6,1794.5,1.11412]
[1745835885177,0.44467442,1794.7,1794.5,1.11412]
[1745835885373,0.44467442,1794.7,1794.4,1.11417]
[1745835885578,4.32194,1794.5,1794.4,1.11418]
[1745835885780,1.11414,1794.5,1794.4,1.11418]
[1745835885977,1.11418,1794.4,1794.3,46.729]
[1745835886277,3.65247442,1794.5,1794.3,7.0432]
[1745835886580,1.55885442,1794.4,1794.3,7.0432]
[1745835887375,1.55885442,1794.4,1794.3,5.929]
[1745835887581,1.55885442,1794.4,1794.3,7.04325]
[1745835888277,1.11431,1794.3,1794.2,1.11429]
[1745835888477,3.65247442,1794.3,1794.2,1.11431]
[1745835888669,0.44467442,1794.3,1794.2,1.11431]
[1745835888875,0.44467442,1794.3,1794.2,4.48851]
[1745835890377,0.44467442,1794.4,1794.3,1.11425]
[1745835890976,1.55888442,1794.4,1794.2,4.48847]
[1745835891173,0.44467442,1794.4,1794.2,4.48845]
[1745835891379,0.44467442,1794.3,1794.2,4.48845]
[1745835891576,1.55892442,1794.3,1794.2,4.48845]
[1745835891783,0.44467442,1794.3,1794.1,41.91434]
[1745835891984,1.55895442,1794.3,1794.1,41.91434]
[1745835892185,3.65247442,1794.3,1794.1,40.8]
[1745835892482,1.55898442,1794.2,1794.1,40.8]
[1745835892886,0.44467442,1794.2,1794.1,41.91437]
[1745835893382,1.55898442,1794.2,1794.1,40.8]
[1745835893676,1.55898442,1794.2,1794.0,4.3114]
[1745835893677,1.11442,1794.1,1793.9,5.673]
[1745835893882,1.11442,1794.1,1793.9,8.7906]
[1745835894082,1.11442,1794.1,1794.0,40.8]
[1745835894280,0.44467442,1794.1,1793.9,5.673]
[1745835894477,1.55909442,1794.1,1793.9,6.78746]
[1745835894679,0.44467442,1794.0,1793.9,47.58749]
[1745835895382,1.55899442,1794.2,1793.9,47.58749]
[1745835895580,0.44467442,1794.2,1793.9,46.473]
[1745835895777,0.44467442,1794.2,1794.0,3.2987]
[1745835895971,0.44467442,1794.1,1794.0,4.41311]
[1745835896681,0.44467442,1794.2,1794.0,4.41309]
[1745835896883,4.32206,1794.3,1794.1,1.11437]
[1745835897382,0.44722705,1794.2,1794.1,1.11437]
[1745835899285,3.2078,1794.5,1794.4,1.11418]
[1745835899889,4.32192,1794.5,1794.3,1.11419]
[1745835900590,3.2078,1794.5,1794.4,1.11418]
[1745835900788,3.2078,1794.5,1794.1,1.11433]
[1745835900983,3.2078,1794.2,1794.1,1.11437]
[1745835901184,1.11418,1794.4,1794.3,1.11422]
[1745835901379,5.99311,1794.5,1793.9,5.674]
[1745835901587,3.2078,1794.2,1793.9,9.1041]
[1745835901787,1.1142,1794.4,1794.2,1.11427]
[1745835901984,1.11427,1794.3,1794.1,4.43003]
[1745835902188,4.32207,1794.3,1794.1,1.11433]
[1745835902491,4.33747,1794.2,1794.0,40.8]
[1745835902891,3.2231,1794.2,1794.0,41.91442]
[1745835903093,3.2078,1794.3,1794.2,1.11431]
[1745835903393,4.33731,1794.4,1794.3,1.11425]
[1745835903579,4.33731,1794.4,1794.1,3.3157]
[1745835903580,3.2231,1794.4,1794.1,3.3157]
[1745835903780,3.2231,1794.4,1794.3,1.11425]
[1745835904592,1.1142,1794.4,1794.1,3.3157]
[1745835904894,4.32205,1794.3,1794.2,1.11428]
[1745835905093,3.2078,1794.3,1794.2,1.11428]
[1745835905688,4.32205,1794.3,1794.1,1.11435]
[1745835905993,4.32206,1794.3,1794.1,1.11432]
[1745835906193,3.2954,1794.2,1794.1,1.11437]
[1745835906991,3.2078,1794.3,1794.0,40.8]
[1745835907205,3.2954,1794.2,1794.1,1.11435]
[1745835907797,1.11445,1794.0,1793.8,1.11453]
[1745835908092,4.32225,1794.0,1793.8,4.55383]
[1745835908287,3.2078,1794.0,1793.9,1.11449]
[1745835908488,3.2078,1794.0,1793.9,4.55379]
[1745835909091,13.78467721,1794.2,1794.1,1.11437]
[1745835909484,13.78467721,1794.2,1793.8,40.8]
[1745835909795,1.11438,1794.1,1793.9,1.11447]
[1745835910001,3.1776,1794.0,1793.9,1.11447]
[1745835910193,3.1776,1794.0,1793.8,44.2393]
[1745835910698,3.1776,1794.0,1793.9,1.11449]
[1745835910899,10.48927721,1794.2,1794.1,1.11437]
[1745835911292,2.78659,1793.7,1792.9,2.78776]
[1745835911588,1.11475,1793.5,1793.3,1.11484]
[1745835911794,1.11475,1793.5,1793.4,40.8]
[1745835912290,1.11475,1793.5,1793.0,1.11502]
[1745835912291,11.00885,1793.5,1793.0,1.11502]
[1745835912495,3.2078,1793.2,1793.1,1.11499]
[1745835912892,3.2078,1793.4,1793.3,1.11482]
[1745835913087,4.3226,1793.4,1793.3,40.8]
[1745835913288,6.4297,1793.4,1793.3,40.8]
[1745835913487,3.65053843,1793.4,1793.3,41.91487]
[1745835914994,10.91972055,1793.4,1793.3,41.91487]
[1745835915297,12.03452055,1793.4,1793.3,40.8]
[1745835915597,14.17672055,1793.4,1793.2,5.447]
[1745835915790,15.29154055,1793.4,1793.2,6.5619]
[1745835915985,0.44273843,1793.3,1793.2,47.36193]
[1745835917193,0.44273843,1793.3,1793.2,46.247]
[1745835917503,3.82503843,1793.3,1793.2,47.36193]
[1745835917698,0.44273843,1793.3,1793.2,47.36193]
[1745835918794,3.82503843,1793.3,1793.2,47.36193]
[1745835919901,0.44273843,1793.3,1793.2,47.36193]
[1745835920602,0.44273843,1793.3,1793.2,52.36193]
[1745835921599,3.2078,1793.4,1793.3,1.11487]
[1745835921903,3.2078,1793.4,1793.3,7.65307]
[1745835922099,3.2078,1793.4,1793.3,12.65307]
[1745835922398,5.44375949,1793.6,1793.5,1.11474]
[1745835924196,5.44375949,1793.6,1793.5,4.32254]
[1745835924402,5.44375949,1793.8,1793.7,1.11462]
[1745835925102,5.44375949,1793.8,1793.7,4.31772]
[1745835927194,5.44375949,1793.8,1793.7,7.52552]
[1745835927404,3.39604004,1794.0,1793.9,1.11449]
[1745835927700,2.21432004,1794.0,1793.9,4.32229]
[1745835927902,2.21432004,1794.0,1793.9,45.12229]
[1745835928300,2.21432004,1794.0,1793.9,50.12229]
[1745835929708,0.11062004,1794.0,1793.9,50.12229]
[1745835930007,4e-08,1794.0,1793.9,50.12229]
[1745835930303,7.64133578,1794.1,1794.0,1.11443]
[1745835930505,7.64133578,1794.1,1794.0,10.09243]
[1745835930804,6.51772578,1794.1,1794.0,18.76663]
[1745835931107,3.48760578,1794.1,1794.0,81.32763]
[1745835931309,5.78e-06,1794.1,1794.0,81.32763]
[1745835931509,10.48564943,1794.4,1794.0,81.32763]
[1745835931510,12.258698,1794.5,1794.4,1.11418]
[1745835931806,5.78e-06,1794.7,1794.6,1.11406]
[1745835936100,3.5902,1794.8,1794.7,1.114]
[1745835941095,3.5902,1794.8,1794.5,6.7314]
[1745835941296,4.70416,1794.8,1794.6,1.11403]
[1745835941500,4.70416,1794.8,1794.5,6.7314]
[1745835941501,4.70416,1794.8,1794.7,1.114]
[1745835941796,3.5902,1794.8,1794.7,1.114]
[1745835942509,3.5902,1794.8,1794.7,4.698]
[1745835942897,3.2078,1795.0,1794.9,1.11387]
[1745835943098,6.8195,1795.0,1794.9,1.11387]
[1745835943596,3.6117,1795.0,1794.9,1.11387]
[1745835943805,3.6117,1795.0,1794.9,41.91387]
[1745835944005,3.6117,1795.0,1794.9,45.49787]
[1745835944505,3.6117,1795.0,1794.9,41.91387]
[1745835945513,4.72551,1795.0,1794.9,40.8]
[1745835945898,3.6117,1795.0,1794.9,41.91387]
[1745835946313,4.72551,1795.0,1794.9,40.8]
[1745835947403,4.72551,1795.0,1794.9,41.91387]
[1745835947404,3.6117,1795.0,1794.9,41.91387]
[1745835948598,8.6117,1795.0,1794.6,3.2078]
[1745835948803,1.11396,1794.8,1794.6,1.11402]
[1745835948999,1.11408,1794.6,1794.5,3.2078]
[1745835949311,1.1142,1794.4,1794.0,5.208]
[1745835949514,1.11419,1794.4,1794.1,4.32213]
[1745835949713,3.706,1794.3,1794.0,5.208]
[1745835949912,4.82026,1794.3,1794.0,6.32238]
[1745835950408,3.706,1794.3,1794.0,5.208]
[1745835950614,3.706,1794.3,1794.1,1.11435]
[1745835950809,3.706,1794.3,1794.0,5.208]
[1745835951013,1.11437,1794.1,1794.0,5.208]
[1745835951512,3.706,1794.3,1793.8,3.2078]
[1745835951711,3.5513,1794.0,1793.8,1.11451]
[1745835952014,3.5513,1794.0,1793.8,4.32231]
[1745835952409,3.5513,1794.0,1793.9,1.11449]
[1745835953212,3.5513,1794.0,1793.9,4.78999]
[1745835953409,3.5513,1794.0,1793.9,1.11449]
[1745835953614,3.5513,1794.0,1793.9,40.8]
[1745835954006,4.66573,1794.0,1793.9,40.8]
[1745835954203,3.5513,1794.0,1793.9,40.8]
[1745835954513,3.5513,1794.0,1793.9,41.91449]
[1745835954904,3.5513,1794.0,1793.9,40.8]
[1745835955101,3.5513,1794.0,1793.9,41.91449]
[1745835955408,3.5513,1794.0,1793.9,40.8]
[1745835955604,3.5513,1794.0,1793.9,41.91449]
[1745835956805,3.5513,1794.0,1793.4,4.988]
[1745835956806,11.7591,1794.0,1793.4,4.988]
[1745835957109,3.2078,1793.7,1793.6,1.11468]
[1745835957315,3.2078,1793.7,1793.6,41.91468]
[1745835957712,6.7591,1794.0,1793.8,1.11454]
[1745835957911,1.11457,1793.8,1793.6,40.8]
[1745835958112,3.4928,1793.7,1793.6,41.91468]
[1745835958810,3.4928,1793.7,1793.6,40.8]
[1745835959206,3.4928,1793.7,1793.6,41.91468]
[1745835959611,3.4928,1793.7,1793.6,1.11468]
[1745835960020,3.4928,1793.7,1793.4,52.725]
[1745835960220,3.4928,1793.7,1793.6,1.11468]
[1745835960719,3.2078,1793.8,1793.7,1.11462]
[1745835964426,6.9392,1793.8,1793.7,1.11462]
[1745835964727,6.9392,1793.8,1793.6,3.7292]
[1745835965024,6.9392,1793.8,1793.7,1.11462]
[1745835966516,8.05376,1793.8,1793.6,3.7292]
[1745835966716,8.05377,1793.8,1793.4,51.78277]
[1745835966921,8.05377,1793.8,1793.6,1.11467]
[1745835967420,6.9392,1793.8,1793.7,1.11462]
[1745835967924,3.2078,1793.8,1793.7,1.11462]
[1745835968524,3.2078,1793.8,1793.7,4.95892]
[1745835969825,4.77629,1793.9,1793.7,4.95889]
[1745835970017,4.77629,1793.9,1793.8,4.989]
[1745835972723,4.77629,1793.9,1793.8,6.10356]
[1745835972923,3.6618,1793.9,1793.8,6.10356]
[1745835973224,7.28392507,1793.9,1793.8,6.10356]
[1745835973428,8.39841507,1793.9,1793.8,4.989]
[1745835973830,7.28392507,1793.9,1793.8,6.10356]
[1745835974427,8.39841507,1793.9,1793.8,6.10356]
[1745835974730,7.28392507,1793.9,1793.8,6.10356]
[1745835975229,3.62212507,1793.9,1793.8,6.10356]
[1745835975927,0.41432507,1793.9,1793.8,14.66486]
[1745835976632,0.41432507,1793.9,1793.4,40.8]
[1745835976826,6.698,1793.8,1793.7,3.5613]
[1745835977025,6.698,1793.8,1793.7,4.67592]
[1745835977224,6.698,1793.8,1793.7,3.5613]
[1745835977626,6.698,1793.8,1793.7,4.67592]
[1745835977929,7.81256,1793.8,1793.6,1.11463]
[1745835978129,6.698,1793.8,1793.7,1.11462]
[1745835978329,6.698,1793.8,1793.6,1.11465]
[1745835978330,7.81258,1793.8,1793.6,1.11465]
[1745835978531,6.698,1793.8,1793.7,1.11462]
[1745835978831,3.2078,1793.8,1793.7,6.10462]
[1745835979027,0.41432507,1793.9,1793.8,1.11456]
[1745835979228,0.41432507,1793.9,1793.8,4.69276]
[1745835979828,3.2078,1794.0,1793.8,4.69276]
[1745835979829,3.2078,1794.0,1793.9,1.11449]
[1745835980020,3.2078,1794.0,1793.9,4.69269]
[1745835981938,7.24027494,1794.2,1794.1,1.11437]
[1745835982121,7.24027494,1794.2,1794.1,6.10437]
[1745835982625,7.24027494,1794.2,1794.1,9.86807]
[1745835983027,7.24027494,1794.2,1794.1,14.86807]
[1745835983423,7.24027494,1794.2,1794.1,58.87587]
[1745835983635,7.24027494,1794.5,1794.4,1.11418]
[1745835983843,7.24027494,1794.5,1794.4,6.10318]
[1745835985627,7.24027494,1794.5,1794.1,45.605]
[1745835985628,10.74997494,1794.5,1794.1,45.605]
[1745835985828,3.2078,1794.4,1794.2,3.4896]
[1745835986037,3.5097,1794.3,1794.2,4.60391]
[1745835986230,1.11446,1794.0,1793.7,1.11462]
[1745835986431,3.2078,1793.8,1793.7,4.60422]
[1745835986630,3.5097,1793.9,1793.8,1.11456]
[1745835987234,3.2078,1794.0,1793.9,1.11449]
[1745835987839,2.78624,1793.9,1793.3,3.48652233]
[1745835988028,1.11499,1793.1,1792.9,11.36466961]
[1745835988231,4.32279,1793.1,1792.9,11.36466961]
[1745835988428,9.32279,1793.1,1792.9,11.36466961]
[1745835988840,13.12119,1793.1,1793.0,7.66935385]
[1745835990139,7.0062,1793.1,1793.0,12.47435385]
[1745835990536,8.12119,1793.1,1793.0,12.47435385]
[1745835991239,8.12119,1793.1,1793.0,6.19877233]
[1745835991240,3.7984,1793.1,1793.0,6.19877233]
[1745835992142,3.6701,1793.4,1793.2,1.11487]
[1745835992342,6.9505,1793.3,1793.2,1.39359233]
[1745835994134,12.40028436,1793.3,1793.2,1.39359233]
[1745835994330,5.44978436,1793.3,1793.2,1.39365233]
[1745835994533,5.44978436,1793.3,1793.2,6.39365233]
[1745835994740,5.44978436,1793.3,1793.2,9.60145233]
[1745835995040,5.44978436,1793.3,1793.2,50.87235233]
[1745835995643,5.44978436,1793.3,1793.2,113.44635233]
[1745835996543,4.28847436,1793.3,1793.2,113.44635233]
[1745835997733,2.64869436,1793.3,1793.2,113.44635233]
[1745835997937,6.08714915,1793.5,1793.4,1.39352233]
[1745835998240,6.08714915,1793.5,1793.4,9.40732233]
[1745835998439,3.2078,1793.8,1793.7,1.11462]
[1745835998638,3.2078,1793.8,1793.7,41.91462]
[1745835999337,3.2078,1793.8,1793.7,42.19334233]
[1745835999538,6.08714915,1794.1,1794.0,1.11443]
[1745835999743,6.08714915,1794.1,1794.0,5.92043]
[1745835999941,6.08714915,1794.1,1794.0,6.19915233]
[1745836000145,6.08714915,1794.1,1794.0,9.40695233]
[1745836000439,6.08714915,1794.1,1794.0,6.19915233]
[1745836000645,6.08714915,1794.1,1794.0,14.40695233]
[1745836000945,6.08714915,1794.1,1794.0,18.29515233]
[1745836001143,6.08714915,1794.1,1794.0,13.29515233]
[1745836002344,7.0627,1794.4,1794.0,14.96679233]
[1745836002543,7.0627,1794.4,1794.3,1.39297233]
[1745836003039,7.0627,1794.4,1794.3,0.27872233]
[1745836003232,7.0627,1794.4,1794.3,1.39297233]
[1745836003937,7.0627,1794.4,1794.1,0.27872233]
[1745836004243,7.0627,1794.4,1794.3,1.39297233]
[1745836005133,3.8549,1794.4,1794.3,1.39297233]
[1745836008543,12.29077394,1794.6,1794.5,1.39284233]
[1745836008845,9.08297394,1794.6,1794.5,6.19684233]
[1745836009047,9.08297394,1794.6,1794.5,51.99684233]
[1745836009048,6.09667394,1794.6,1794.5,51.99684233]
[1745836009249,4.66450394,1794.6,1794.5,55.67374233]
[1745836009447,10.8806592,1795.0,1794.9,1.11387]
[1745836009651,10.8806592,1795.0,1794.9,6.19659233]
[1745836010149,10.8806592,1795.0,1794.9,51.99659233]
[1745836010349,10.8806592,1795.0,1794.9,59.48159233]
[1745836011447,9.4162792,1795.0,1794.9,59.48159233]
[1745836011652,8.2445692,1795.0,1794.9,59.48159233]
[1745836012449,7.0597692,1795.0,1794.9,59.48159233]
[1745836012643,5.9012592,1795.0,1794.9,59.48159233]
[1745836012953,6.7941,1795.5,1795.1,3.06307233]
[1745836013149,6.7941,1795.5,1795.4,1.39228233]
[1745836013450,6.7941,1795.5,1795.4,6.19528233]
[1745836013637,3.5863,1795.5,1795.4,6.19528233]
[1745836013844,3.5863,1795.5,1795.4,46.99528233]
[1745836014049,3.2078,1795.7,1795.6,1.11344]
[1745836014251,3.7501,1795.7,1795.6,1.39216233]
[1745836015043,3.2078,1796.0,1795.9,1.39197233]
[1745836015251,3.2078,1796.0,1795.9,6.09097233]
[1745836016354,3.7501,1796.1,1796.0,1.39191233]
[1745836018451,3.2078,1796.2,1796.1,1.39185233]
[1745836018654,3.8876,1796.4,1796.3,1.39173233]
[1745836018852,3.8876,1796.4,1796.3,6.08973233]
[1745836019050,3.2078,1796.7,1796.3,7.75921233]
[1745836019262,3.8876,1796.7,1796.4,6.63746]
[1745836019554,3.8876,1796.7,1796.6,1.39154233]
[1745836020566,12.6941024,1796.8,1796.7,1.39148233]
[1745836020764,12.6941024,1796.8,1796.7,6.08848233]
[1745836021268,12.6941024,1796.8,1796.7,45.77572233]
[1745836021462,12.6941024,1796.8,1796.7,46.88848233]
[1745836021663,18.8068024,1796.8,1796.7,40.8]
[1745836021967,5.0,1796.8,1796.7,41.07872233]
[1745836022159,3.5817,1796.8,1796.7,41.07872233]
[1745836022361,8.5817,1796.8,1796.7,41.07872233]
[1745836022666,9.6944,1796.8,1796.7,41.07872233]
[1745836022866,8.5817,1796.8,1796.3,4.696]
[1745836023068,3.2078,1796.5,1796.3,5.80895]
[1745836023267,3.2078,1796.5,1796.3,4.696]
[1745836023469,3.2078,1796.5,1796.4,1.11294]
[1745836023660,3.7281,1796.6,1796.5,1.11288]
[1745836023861,3.7281,1796.6,1796.5,40.8]
[1745836024059,3.7281,1796.6,1796.5,41.91288]
[1745836024570,3.2078,1796.7,1796.6,1.11282]
[1745836024764,1.11265,1796.9,1796.6,1.11282]
[1745836025068,1.11265,1796.9,1796.6,1.11278]
[1745836025256,1.11264,1796.9,1796.4,9.81145]
[1745836025456,1.11265,1796.9,1796.4,9.81145]
[1745836025666,3.2078,1797.0,1796.8,1.11266]
[1745836025862,3.2078,1797.0,1796.9,1.11263]
[1745836026069,3.2078,1797.0,1796.8,1.11268]
[1745836026264,3.2078,1797.0,1796.8,1.11267]
[1745836026465,3.2078,1797.0,1796.7,4.695]
[1745836026664,3.2078,1797.0,1796.8,1.11269]
[1745836026969,3.2078,1797.0,1796.7,4.695]
[1745836027175,3.2078,1797.0,1796.8,1.11266]
[1745836027176,3.8467,1796.9,1796.8,1.11266]
[1745836027765,3.8467,1796.9,1796.8,41.91266]
[1745836027962,3.8467,1796.9,1796.8,41.9127]
[1745836028163,10.7451,1797.2,1796.9,1.11263]
[1745836028373,3.2078,1797.4,1797.3,1.11239]
[1745836028569,3.2078,1797.4,1796.4,6.8159]
[1745836028759,3.2078,1796.5,1795.8,9.59912]
[1745836029066,3.2078,1796.1,1795.8,3.6027]
[1745836029273,4.32095,1796.1,1795.8,3.6027]
[1745836029567,3.2078,1795.9,1795.4,4.695]
[1745836029866,3.2078,1795.5,1794.8,5.80891]
[1745836030066,3.2078,1795.0,1794.8,8.6313]
[1745836030261,3.2078,1795.5,1794.7,3.2078]
[1745836030462,3.2078,1795.2,1794.7,3.2078]
[1745836030664,3.2078,1795.5,1794.7,3.2078]
[1745836030864,4.32132,1795.5,1794.8,44.7363]
[1745836031059,3.2078,1795.4,1794.9,4.695]
[1745836031372,3.2078,1795.4,1795.0,3.9363]
[1745836031566,3.2078,1795.2,1795.0,3.9363]
[1745836031765,3.8656,1795.1,1794.9,5.80884]
[1745836031968,3.8656,1795.1,1794.9,4.695]
[1745836032168,3.2078,1795.0,1794.9,4.695]
[1745836032369,3.2078,1795.2,1794.9,5.80882]
[1745836032571,3.2078,1795.2,1794.9,8.4564]
[1745836033173,3.8093,1795.8,1794.9,8.4564]
[1745836033174,3.2078,1795.6,1795.0,5.99234]
[1745836033377,3.2078,1795.6,1795.4,1.11356]
[1745836033564,3.5857,1795.5,1795.4,4.696]
[1745836033761,3.5857,1795.5,1795.4,9.57096]
[1745836034072,3.2078,1795.6,1795.5,1.1135]
[1745836034272,3.2078,1795.6,1795.5,3.7614]
[1745836034459,3.2078,1795.6,1795.5,4.8749]
[1745836034664,3.2078,1795.6,1795.5,3.7614]
[1745836035376,3.2078,1795.6,1795.5,4.8749]
[1745836036166,3.2078,1795.6,1795.5,3.7614]
[1745836036374,3.2078,1795.6,1795.5,4.8749]
[1745836036571,3.2078,1795.8,1795.5,3.7614]
[1745836036763,3.2078,1795.8,1795.7,1.11338]
[1745836037167,3.2078,1796.1,1795.7,1.11338]
[1745836037367,3.9532,1796.0,1795.8,9.67009]
[1745836037568,3.9532,1796.0,1795.9,1.11325]
[1745836037765,3.9532,1796.0,1795.9,40.8]
[1745836038376,3.9532,1796.0,1795.9,41.91325]
[1745836039477,3.8792,1796.2,1796.1,1.11313]
[1745836039680,1.11316,1796.1,1795.9,40.8]
[1745836039974,7.0609,1796.0,1794.8,3.2078]
[1745836040177,3.2078,1795.0,1794.9,1.11386]
[1745836040670,3.2078,1795.4,1794.9,1.11386]
[1745836040874,3.2078,1795.2,1795.1,1.11375]
[1745836042073,3.9386,1795.5,1795.4,1.11356]
[1745836042271,3.2078,1795.6,1795.5,1.1135]
[1745836042776,3.2078,1795.6,1795.5,5.0766]
[1745836045478,3.2078,1795.6,1795.5,45.8766]
[1745836045879,3.873,1796.1,1796.0,1.11319]
[1745836046174,3.2078,1796.3,1796.2,1.11307]
[1745836046374,7.0808,1796.3,1796.1,1.11308]
[1745836046680,7.0808,1796.3,1796.2,40.8]
[1745836046873,1.11309,1796.2,1795.9,4.687]
[1745836047173,7.0808,1796.1,1796.0,1.11319]
[1745836047366,7.0808,1796.1,1796.0,41.91319]
[1745836048077,12.0808,1796.1,1796.0,40.8]
[1745836048278,12.0808,1796.1,1796.0,41.91319]
[1745836048279,7.0808,1796.1,1796.0,41.91319]